bitfinex/quotes_ETHUSD_20220310
["timestamp","ask_amount","ask_price","bid_price","bid_amount"]
[1646918589226,0.07975636,2605.4,2605.0,0.98165143]
[1646918589426,0.0036369,2605.3,2605.0,0.98165143]
[1646918589724,0.0036369,2605.3,2605.0,0.02133143]
[1646918589924,0.0036369,2605.3,2605.2,0.02808778]
[1646918590327,0.7947918,2605.4,2605.2,0.02808778]
[1646918590526,0.71867228,2605.4,2605.2,0.02808778]
[1646918590728,0.07975636,2605.3,2605.2,0.02808778]
[1646918592126,0.0833932,2605.4,2605.2,0.02808778]
[1646918592326,0.07975636,2605.3,2605.2,0.02808778]
[1646918592571,0.0833932,2605.4,2605.2,0.02808778]
[1646918592776,0.07975636,2605.3,2605.2,0.02808778]
[1646918593278,0.0833932,2605.4,2605.2,0.02808778]
[1646918593477,0.07975636,2605.3,2605.2,0.02808778]
[1646918594281,0.7947918,2605.3,2605.2,0.02808778]
[1646918594580,0.07975636,2605.3,2605.2,0.02808778]
[1646918594976,0.13137338,2605.3,2605.2,0.02808778]
[1646918595178,0.13137338,2605.3,2605.2,0.05175176]
[1646918596176,0.84640882,2605.3,2605.2,0.05175176]
[1646918596728,0.13137338,2605.3,2605.2,0.05175176]
[1646918596929,0.07975636,2605.3,2605.2,0.05175176]
[1646918597332,0.7947918,2605.3,2605.2,0.05175176]
[1646918599435,0.07975636,2605.3,2605.2,0.05175176]
[1646918599934,0.07975636,2605.3,2605.2,0.05175448]
[1646918600582,0.00363684,2605.4,2605.2,3.6316595]
[1646918600781,0.00363684,2605.4,2605.3,0.07377344]
[1646918601182,0.07975636,2605.7,2605.3,0.07377344]
[1646918601384,0.00363681,2605.4,2605.3,1.03387344]
[1646918602285,0.07975636,2605.7,2605.3,1.03387344]
[1646918602482,0.07975636,2605.6,2605.4,0.25]
[1646918602688,0.08339314,2605.5,2605.4,2.17022]
[1646918602887,0.00363678,2605.5,2605.4,2.17022]
[1646918603487,0.07975636,2605.7,2605.4,2.17022]
[1646918603688,0.07975636,2605.6,2605.4,2.17022]
[1646918603925,0.07975636,2605.5,2605.4,2.17022]
[1646918604123,0.00363673,2605.6,2605.4,3.13033]
[1646918604524,0.85312825,2605.6,2605.4,0.25]
[1646918604723,0.76973516,2605.6,2605.5,0.02614209]
[1646918604928,0.07975498,2605.6,2605.4,0.49309968]
[1646918605125,45.5,2605.4,2604.8,0.07206574]
[1646918605329,0.71373709,2605.1,2604.3,3.66622458]
[1646918605524,0.71373709,2605.1,2604.3,3.41622458]
[1646918605525,0.71373709,2604.9,2604.3,3.41622458]
[1646918605724,0.71373709,2604.9,2604.3,5.33751458]
[1646918605926,0.71373709,2604.9,2604.1,7.282]
[1646918606123,0.07975498,2605.0,2604.2,1.5201863]
[1646918606124,0.00221478,2604.7,2604.2,1.5201863]
[1646918606323,0.00221478,2604.7,2604.0,1.24887787]
[1646918606523,0.08196976,2604.7,2604.1,1.52052084]
[1646918607126,0.07975498,2604.7,2604.1,1.52052084]
[1646918607326,0.00221478,2604.5,2604.1,1.52052084]
[1646918607781,0.00221478,2604.5,2604.2,0.07945956]
[1646918608081,0.00221478,2604.5,2604.3,14.21095084]
[1646918608280,8.50632678,2605.6,2604.4,1.59188105]
[1646918608281,0.07975498,2604.7,2604.4,1.59188105]
[1646918608480,0.07975498,2604.6,2604.5,1.59652487]
[1646918608679,0.71373709,2605.2,2604.5,1.59652487]
[1646918608884,0.71373709,2605.2,2604.6,1.52052084]
[1646918609079,0.71373709,2605.2,2604.7,0.96045]
[1646918609680,0.71373709,2605.1,2604.7,0.96045]
[1646918609880,0.79740747,2605.1,2604.7,0.96045]
[1646918610085,0.07975498,2605.0,2604.7,0.96045]
[1646918610382,0.07975498,2604.9,2604.8,1.20783647]
[1646918610581,0.0039154,2605.1,2604.8,1.20783647]
[1646918610782,0.71373709,2605.2,2604.8,1.20783647]
[1646918610980,0.00391547,2605.0,2604.8,1.20783647]
[1646918611426,0.00391547,2605.0,2604.6,1.92082]
[1646918611629,0.00391547,2605.0,2604.4,0.02427879]
[1646918611630,1.09773709,2604.8,2604.4,0.02427879]
[1646918611829,1.09853232,2604.5,2604.4,0.02427879]
[1646918612026,1.1782873,2604.5,2604.4,0.02427879]
[1646918612227,0.46375498,2604.5,2604.4,0.02427879]
[1646918612427,3.4574977,2604.5,2604.4,0.02427879]
[1646918612633,4.41097922,2604.5,2604.4,0.02427879]
[1646918612830,7.91097922,2604.5,2604.4,0.02427879]
[1646918613530,5.8780565,2604.5,2604.4,0.02427879]
[1646918615073,5.92525928,2604.5,2604.4,0.02427879]
[1646918615475,5.92525928,2604.5,2604.3,0.02420727]
[1646918615675,3.94146724,2604.4,2604.3,0.02420727]
[1646918615875,4.02125378,2604.4,2604.3,0.02420727]
[1646918616679,4.73495684,2604.4,2604.3,0.02420727]
[1646918616877,0.85095684,2604.4,2604.3,0.02420727]
[1646918619426,0.13725378,2604.4,2604.3,0.02420727]
[1646918620127,0.13725378,2604.4,2604.3,0.06903466]
[1646918621529,0.07978654,2604.4,2604.3,0.06903466]
[1646918621930,0.07978654,2604.6,2604.3,0.06903466]
[1646918622130,0.00363347,2604.5,2604.3,0.06903466]
[1646918622782,0.07978654,2604.7,2604.3,0.06903466]
[1646918622984,0.00363349,2604.5,2604.3,1.02962466]
[1646918623186,0.08342003,2604.5,2604.3,1.02962466]
[1646918623382,0.07978654,2604.4,2604.3,1.02962466]
[1646918623582,0.00363349,2604.5,2604.3,1.02962466]
[1646918624082,0.07978654,2604.8,2604.3,1.02962466]
[1646918624282,0.71370306,2604.9,2604.3,1.02962466]
[1646918624283,0.00363392,2604.5,2604.4,1.19741066]
[1646918624683,0.08342046,2604.5,2604.4,1.19741066]
[1646918625083,0.00363392,2604.5,2604.4,1.0776696]
[1646918625284,0.07978654,2604.9,2604.4,2.0381564]
[1646918625483,0.0036339,2604.6,2604.5,0.96045]
[1646918626430,0.07978654,2604.9,2604.5,0.96045]
[1646918626638,0.00363384,2604.7,2604.5,0.96045]
[1646918627435,0.00363384,2604.7,2604.4,1.9209]
[1646918627637,0.00363384,2604.7,2604.3,1.09245407]
[1646918627638,0.46378654,2604.7,2604.3,0.06975407]
[1646918627836,0.46378654,2604.7,2604.3,0.04705407]
[1646918627837,1.09770306,2604.5,2604.3,0.04705407]
[1646918628037,0.51448504,2604.4,2604.3,0.04705407]
[1646918628241,0.57793037,2604.5,2604.3,0.04705407]
[1646918628441,1.15487037,2604.5,2604.3,0.04705407]
[1646918628637,0.00363377,2604.7,2604.3,0.04705407]
[1646918628836,1.90322747,2605.5,2604.3,0.04705407]
[1646918628837,0.71266912,2604.9,2604.3,0.04705407]
[1646918629237,0.00363388,2604.5,2604.3,0.04705407]
[1646918629435,0.00363388,2604.5,2604.3,2.89174441]
[1646918629640,0.00363388,2604.5,2604.3,4.81260611]
[1646918630080,0.71266912,2605.0,2604.5,0.06939231]
[1646918630283,0.71266912,2605.0,2604.6,0.96042]
[1646918630886,0.71266912,2605.0,2604.7,1.17060769]
[1646918631483,0.00363367,2604.9,2604.7,1.17060769]
[1646918632084,0.00363367,2604.9,2604.7,3.09147769]
[1646918632484,0.71266912,2605.0,2604.7,3.09147769]
[1646918632688,0.00363367,2604.9,2604.7,3.09147769]
[1646918632888,0.00363367,2604.9,2604.7,4.05188469]
[1646918633688,0.71266912,2605.1,2604.7,4.05188469]
[1646918633929,0.00363367,2604.9,2604.7,4.05188469]
[1646918634828,0.71266912,2605.0,2604.7,4.05188469]
[1646918635030,0.00363364,2604.9,2604.7,4.05188469]
[1646918635229,0.00363364,2604.9,2604.8,1.02138898]
[1646918635828,0.00363364,2604.9,2604.8,0.06095898]
[1646918636033,0.71266912,2605.0,2604.8,0.06095898]
[1646918636232,0.71630273,2605.0,2604.8,0.06095898]
[1646918636830,0.00363361,2605.0,2604.8,0.06095898]
[1646918637030,0.00363361,2605.0,2604.8,1.02138898]
[1646918637230,0.71266912,2605.1,2604.8,1.02138898]
[1646918637430,0.00363359,2605.0,2604.8,1.02138898]
[1646918638482,0.71266912,2605.1,2604.8,1.02138898]
[1646918638686,0.00363359,2605.0,2604.8,1.02138898]
[1646918639684,0.71266912,2605.1,2604.8,1.02138898]
[1646918639883,0.00363359,2605.0,2604.9,0.02069464]
[1646918640884,0.71266912,2605.1,2604.9,0.02069464]
[1646918641084,0.71630268,2605.1,2604.9,0.02069464]
[1646918642134,0.71266912,2605.1,2604.9,0.02069464]
[1646918642334,0.71630265,2605.1,2604.9,0.02069464]
[1646918642935,0.00363353,2605.1,2604.9,0.02069464]
[1646918643138,0.71311546,2605.3,2604.9,3.52069464]
[1646918643337,0.71311546,2605.3,2604.9,3.82069464]
[1646918643536,1.00715008,2605.6,2604.9,7.83000464]
[1646918643537,0.00363353,2605.1,2604.9,7.83000464]
[1646918643736,0.00363353,2605.1,2605.0,3.6918]
[1646918643940,0.00363353,2605.1,2605.0,0.1918]
[1646918644135,0.00363353,2605.1,2605.0,1.1918]
[1646918644435,0.71311546,2605.6,2605.0,3.31196681]
[1646918644638,0.00221832,2605.2,2605.0,4.27209681]
[1646918644841,0.00221832,2605.2,2605.1,0.3]
[1646918645094,0.71311546,2605.6,2605.1,3.5]
[1646918645296,0.71311546,2605.7,2605.2,0.96004]
[1646918645493,0.71311546,2605.7,2605.3,0.96006]
[1646918646093,0.71311546,2605.6,2605.3,0.96006]
[1646918647096,0.71533024,2605.6,2605.3,0.96006]
[1646918647497,3.884,2605.5,2605.1,3.8401563]
[1646918647704,1.09711546,2605.2,2605.0,0.04108675]
[1646918647903,4.50285094,2605.3,2605.2,2.33926548]
[1646918648102,4.4505652,2605.3,2605.2,2.33926548]
[1646918648303,4.62603653,2605.3,2605.2,0.75806548]
[1646918648504,6.05766331,2605.3,2605.0,0.04108675]
[1646918648702,0.95156561,2605.1,2605.0,0.04108675]
[1646918648944,4.57760214,2605.1,2605.0,0.04108675]
[1646918649147,4.57760214,2605.1,2604.2,0.25]
[1646918649148,0.40431325,2605.0,2604.2,0.25]
[1646918649341,1.33608669,2604.8,2603.8,2.4265]
[1646918649538,1.33608669,2604.8,2603.6,4.78253603]
[1646918649539,4.01003653,2604.7,2604.1,0.00171062]
[1646918649742,0.12603653,2604.6,2604.1,0.00171062]
[1646918649938,0.9609,2604.5,2604.1,0.00171062]
[1646918650140,0.12603653,2604.4,2604.1,0.00171062]
[1646918650339,0.12603653,2604.4,2603.9,1.18567897]
[1646918650543,0.12603653,2604.4,2604.1,0.00171062]
[1646918651244,0.12603653,2604.3,2604.1,0.00171062]
[1646918651443,0.12603653,2604.2,2604.0,1.45382598]
[1646918651647,0.12603653,2604.1,2603.6,0.192]
[1646918651843,0.12603653,2604.5,2603.7,1.46963001]
[1646918652046,0.12603653,2604.4,2603.8,1.45393189]
[1646918652243,0.12603653,2604.3,2603.8,1.45393189]
[1646918652443,0.12603653,2604.2,2603.8,1.45393189]
[1646918652683,3.5,2604.6,2603.8,1.45393189]
[1646918652684,0.12603653,2604.1,2603.8,1.45393189]
[1646918652883,0.12603653,2604.0,2603.6,1.98299193]
[1646918653181,5.41295759,2604.6,2603.9,0.00392407]
[1646918653384,0.1257745,2604.5,2604.0,1.16928865]
[1646918653585,0.1257745,2604.6,2604.0,1.16928865]
[1646918653781,0.1257745,2604.5,2604.0,1.16928865]
[1646918653982,0.1257745,2604.5,2603.9,0.00392407]
[1646918653983,0.1257745,2604.4,2603.8,0.1918]
[1646918654184,0.1257745,2604.3,2603.9,1.45408699]
[1646918654382,3.5,2604.8,2604.1,0.00392403]
[1646918654383,0.1257745,2604.2,2604.1,0.00392403]
[1646918654782,0.1257745,2604.3,2604.1,0.00392403]
[1646918654983,0.1257745,2604.2,2604.1,0.00392403]
[1646918655183,0.1257745,2604.7,2603.8,0.192]
[1646918655383,0.1257745,2604.7,2604.3,0.06941671]
[1646918655384,0.96072,2604.6,2604.3,0.06941671]
[1646918655683,0.1257745,2604.5,2604.3,0.06941671]
[1646918656736,0.1257745,2604.4,2604.3,0.06941671]
[1646918657130,1.07786119,2604.9,2604.3,0.06941671]
[1646918657330,3.52031325,2605.0,2604.3,0.06941671]
[1646918657331,0.1257745,2604.8,2604.3,0.06941671]
[1646918657635,0.95208669,2604.8,2604.3,0.06941671]
[1646918657834,0.96075,2604.5,2604.3,0.06941671]
[1646918658035,4.3401847,2604.4,2604.3,0.06941671]
[1646918658235,0.1257745,2604.4,2604.3,0.06941671]
[1646918659035,0.1257745,2604.4,2604.3,0.0629685]
[1646918659243,0.84029101,2604.4,2604.3,0.0629685]
[1646918659440,0.1257745,2604.4,2604.3,0.0629685]
[1646918659637,0.71451651,2604.6,2604.3,0.0629685]
[1646918660082,0.71451651,2604.6,2604.4,0.02178743]
[1646918660482,0.71451651,2604.5,2604.4,0.02178743]
[1646918661084,0.1257745,2604.6,2604.4,0.02178743]
[1646918661085,0.1257745,2604.6,2604.4,0.01539579]
[1646918661386,4.57786119,2604.6,2604.4,0.01539579]
[1646918661590,4.57786119,2604.5,2604.4,0.01539579]
[1646918662388,3.6257745,2604.5,2604.4,0.01539579]
[1646918662588,4.57786119,2604.5,2604.4,0.01539579]
[1646918663491,3.6257745,2604.5,2604.4,0.01539579]
[1646918663935,4.1787745,2604.5,2604.4,0.01539579]
[1646918665136,53.8060123,2604.4,2603.9,0.01447835]
[1646918665337,54.38302,2604.4,2604.3,0.00999086]
[1646918665535,54.38302,2604.4,2604.3,9.086e-05]
[1646918665536,56.2165087,2604.4,2604.3,9.086e-05]
[1646918665735,58.20113548,2604.4,2604.3,9.086e-05]
[1646918665939,0.00070914,2604.2,2603.9,0.01447835]
[1646918666138,0.384,2603.9,2603.0,0.192]
[1646918666339,0.71437644,2603.7,2603.1,1.44654283]
[1646918666539,1.81164076,2603.7,2603.1,1.44654283]
[1646918666738,0.13603432,2603.6,2603.1,1.44654283]
[1646918667140,0.13603432,2603.5,2603.1,1.44654283]
[1646918667338,0.13603432,2603.4,2603.1,1.44654283]
[1646918667579,1.67552914,2603.8,2603.1,1.44654283]
[1646918667580,0.13603432,2603.3,2603.1,1.44654283]
[1646918667983,0.13603432,2603.2,2603.1,1.44654283]
[1646918668183,0.96112,2603.5,2603.1,1.44654283]
[1646918668384,0.13603432,2603.4,2603.1,1.44654283]
[1646918669184,0.13603432,2603.4,2603.0,1.45047188]
[1646918669391,0.13603432,2603.4,2603.1,1.44654283]
[1646918669789,0.13603432,2603.4,2603.1,0.00392902]
[1646918669989,0.13603432,2603.4,2603.2,0.02077924]
[1646918670992,0.13603432,2603.4,2603.2,0.02470819]
[1646918672133,0.13603432,2603.4,2603.2,0.02077924]
[1646918672329,0.13603432,2603.4,2603.2,0.02470819]
[1646918673134,0.13603432,2603.4,2603.2,0.02077924]
[1646918673533,0.13603432,2603.4,2603.2,0.02463453]
[1646918674333,0.13603432,2603.4,2603.2,0.02077924]
[1646918674737,0.13603432,2603.4,2603.3,0.0207559]
[1646918679535,0.13603432,2603.5,2603.3,0.0207559]
[1646918679936,0.13603432,2603.5,2603.3,0.02076207]
[1646918680139,0.13603432,2603.4,2603.3,0.02076207]
[1646918680336,0.13603432,2603.6,2603.3,0.02076207]
[1646918680736,0.13603432,2603.6,2603.3,0.02440009]
[1646918681541,0.13603432,2603.6,2603.3,0.02076207]
[1646918681940,0.13603432,2603.6,2603.3,0.02440006]
[1646918681941,0.96114,2603.5,2603.3,0.02440006]
[1646918682140,0.13603432,2603.4,2603.3,0.02440006]
[1646918682789,0.13603432,2603.4,2603.3,0.02076207]
[1646918682988,0.05462432,2603.7,2603.3,1.03672225]
[1646918682989,0.13603432,2603.6,2603.3,1.03672225]
[1646918683187,0.13603432,2603.6,2603.4,3.5]
[1646918683391,0.00070914,2604.2,2603.5,3.5]
[1646918683590,0.00070914,2604.2,2603.6,0.06678315]
[1646918684289,0.00070914,2604.2,2603.8,0.00364682]
[1646918684491,0.13635128,2604.2,2603.8,0.00364682]
[1646918685189,0.13635128,2604.2,2603.6,0.05835196]
[1646918685393,0.96092,2604.1,2603.6,0.05835196]
[1646918685591,0.13564214,2604.0,2603.9,0.00364677]
[1646918686435,0.13564214,2604.0,2603.5,0.04113707]
[1646918686636,0.13564214,2603.9,2603.5,0.04113707]
[1646918686837,0.13564214,2603.8,2603.5,0.04113707]
[1646918687037,0.13564214,2603.9,2603.5,0.04113707]
[1646918687237,0.0541021,2604.0,2603.5,0.04113707]
[1646918687238,0.13564214,2603.8,2603.5,0.04113707]
[1646918687440,0.13564214,2603.7,2603.5,0.04113707]
[1646918687641,0.13564214,2603.6,2603.5,0.04113707]
[1646918687841,0.0541021,2604.0,2603.6,0.00352611]
[1646918688046,0.13555905,2603.9,2603.6,0.00352611]
[1646918688843,0.13555905,2603.9,2603.5,0.04113707]
[1646918689042,0.13555905,2603.9,2603.6,0.00352608]
[1646918690092,0.13555905,2603.9,2603.3,1.44234715]
[1646918690284,0.13555905,2603.9,2603.6,0.00352608]
[1646918691293,0.13555905,2603.9,2603.3,1.44234715]
[1646918691490,0.13555905,2603.9,2603.6,0.00335063]
[1646918692295,0.13555905,2603.9,2603.0,3.5]
[1646918692296,0.384,2603.7,2602.8,0.00130735]
[1646918692493,0.384,2603.3,2602.6,0.00130735]
[1646918692793,0.06348659,2603.0,2602.4,0.00130735]
[1646918692994,3.56348659,2603.0,2602.2,0.3841]
[1646918693199,0.07372663,2602.9,2602.1,1.11469186]
[1646918694934,0.07372663,2602.9,2601.9,10.71216592]
[1646918695138,1.03507663,2602.9,2602.4,0.00338743]
[1646918695335,0.06894758,2602.8,2602.4,0.00338743]
[1646918696035,0.06894758,2602.8,2602.0,0.00130735]
[1646918696237,0.06894758,2602.8,2602.5,0.00338738]
[1646918697142,0.06894758,2602.8,2602.2,1.16219088]
[1646918697337,0.0685538,2603.0,2602.2,1.16219088]
[1646918697615,0.0685538,2603.0,2602.5,0.00338735]
[1646918698511,0.0685538,2603.0,2602.2,1.16219088]
[1646918698710,0.0685538,2603.0,2602.6,0.00337005]
[1646918698909,1.0298838,2603.0,2602.6,0.00337005]
[1646918699110,0.06329645,2602.8,2602.6,0.00337005]
[1646918699712,0.06329645,2602.8,2602.2,1.46219088]
[1646918699910,0.06329645,2602.8,2602.6,0.00337007]
[1646918700911,0.06329645,2602.8,2602.2,0.05324666]
[1646918700912,1.92295,2602.6,2602.2,0.03976435]
[1646918701114,0.07593408,2602.4,2602.2,0.05324666]
[1646918702136,0.07593408,2602.4,2602.2,0.03976435]
[1646918702335,0.07593408,2602.4,2602.2,0.04313679]
[1646918703140,0.07593408,2602.4,2602.2,0.03976435]
[1646918703440,0.07593408,2602.4,2602.2,0.04118526]
[1646918704041,0.06736487,2602.7,2602.2,0.04118526]
[1646918704440,0.06736487,2602.7,2602.2,0.03976435]
[1646918704641,0.06736487,2602.7,2602.3,0.00142083]
[1646918705088,0.06257325,2602.7,2602.3,0.00142083]
[1646918705490,0.06257325,2602.7,2602.3,0.04147418]
[1646918705686,0.06257325,2602.7,2602.3,0.04005335]
[1646918705888,0.06257325,2602.7,2602.4,0.00384154]
[1646918706788,0.06257325,2602.7,2602.3,0.04005335]
[1646918707188,0.06257325,2602.7,2602.4,0.00384151]
[1646918708092,0.06257325,2602.7,2602.3,0.03866489]
[1646918708295,3.56257325,2602.7,2602.4,0.00384151]
[1646918708494,0.07338433,2602.6,2602.4,0.00384151]
[1646918709339,0.07338433,2602.6,2602.3,0.03866489]
[1646918709538,0.96149,2602.5,2602.4,0.00363146]
[1646918710442,0.96149,2602.5,2602.2,0.02160898]
[1646918710643,0.06291829,2602.4,2602.3,0.00363149]
[1646918711645,0.06291829,2602.4,2602.2,0.02160898]
[1646918711845,0.06291829,2602.4,2602.2,0.02524052]
[1646918712346,0.28669012,2602.3,2602.2,0.02524052]
[1646918712590,0.06291829,2602.4,2602.2,0.02524052]
[1646918712795,0.28668693,2602.3,2602.2,0.02160898]
[1646918713194,0.28668693,2602.3,2602.2,1.31648559]
[1646918713394,0.06291829,2602.4,2602.2,1.31648559]
[1646918713594,0.06291829,2602.4,2602.2,0.02160898]
[1646918713595,0.2866707,2602.3,2602.2,0.02160898]
[1646918714995,0.2866707,2602.3,2602.1,0.00365922]
[1646918715198,4.6937,2602.8,2602.0,1.316887]
[1646918715398,0.3613854,2602.7,2602.3,1.1231799]
[1646918715595,0.28654159,2602.6,2602.3,1.1231799]
[1646918715796,0.28654159,2602.5,2602.1,0.00365922]
[1646918715997,0.28654159,2602.5,2602.1,1.29847236]
[1646918716196,0.28654159,2602.5,2602.2,1.29481314]
[1646918716450,0.28654159,2602.5,2602.0,0.02200893]
[1646918716647,0.28654159,2602.5,2602.2,0.00365516]
[1646918716648,0.06767093,2602.4,2602.2,0.00365516]
[1646918716847,0.28654159,2602.3,2602.2,0.00365516]
[1646918717751,1.24812159,2602.3,2602.0,0.01985482]
[1646918717953,1.24812159,2602.3,2602.1,0.00365518]
[1646918717954,0.34527049,2602.2,2602.1,0.00365518]
[1646918718852,0.34527049,2602.2,2602.0,0.01985482]
[1646918719056,0.34527049,2602.2,2602.0,0.02351006]
[1646918719057,0.0587289,2602.2,2602.0,0.02351006]
[1646918719853,0.0587289,2602.2,2602.0,0.00365524]
[1646918720097,0.0587289,2602.2,2601.9,7.34158634]
[1646918720289,0.96165,2602.1,2602.0,0.00365585]
[1646918720493,1.24801962,2602.1,2602.0,0.00365585]
[1646918721291,1.24801962,2602.1,2601.9,7.34158634]
[1646918721489,0.34874052,2602.0,2601.9,7.34524222]
[1646918722291,0.0623709,2602.0,2601.9,7.34524222]
[1646918722492,0.0623709,2602.0,2601.9,7.34158634]
[1646918722895,0.34713444,2602.0,2601.9,7.34158634]
[1646918723496,0.34713444,2602.0,2601.9,0.02158634]
[1646918725351,0.34713444,2602.0,2601.9,0.04272664]
[1646918728196,0.34713444,2602.0,2601.9,0.02169602]
[1646918729999,0.34713444,2602.0,2601.9,0.06409627]
[1646918735193,0.26192725,2602.0,2601.9,0.06409627]
[1646918736395,0.31337133,2602.0,2601.9,0.06409627]
[1646918740446,0.22040271,2602.0,2601.9,0.06409627]
[1646918748247,0.22040271,2602.0,2601.9,0.03359854]
[1646918748647,0.16895863,2602.0,2601.9,0.03359854]
[1646918749851,0.16895863,2602.0,2601.3,0.9744019]
[1646918749852,3.84659,2601.7,2601.3,0.9744019]
[1646918750108,3.84659,2601.7,2601.3,1.48478284]
[1646918750498,4.000319,2601.7,2601.3,0.3]
[1646918750695,0.96168,2601.5,2601.2,4.8]
[1646918751093,0.96168,2601.5,2601.0,1.9233421]
[1646918751094,0.96168,2601.5,2601.1,3.5]
[1646918751294,0.96168,2601.5,2601.0,1.9233421]
[1646918751895,0.96168,2601.5,2601.0,1.91693054]
[1646918752096,0.96168,2601.5,2601.1,1.46080518]
[1646918752496,0.96168,2601.5,2601.1,0.3]
[1646918752702,0.07086718,2601.4,2601.1,0.003939]
[1646918752901,2.95639718,2601.4,2601.1,0.003939]
[1646918753106,44.07752943,2601.2,2600.5,2.44786634]
[1646918753302,1.92414,2600.7,2600.2,5.9198]
[1646918753600,3.84829,2600.8,2600.1,15.60181551]
[1646918753601,0.07270216,2600.6,2600.1,15.10169185]
[1646918753840,0.07270216,2600.6,2600.1,14.3901639]
[1646918754042,0.07270216,2600.6,2600.2,0.04490545]
[1646918754241,0.07270216,2600.6,2600.2,0.42890545]
[1646918754442,1.92414,2600.5,2600.2,0.1113794]
[1646918754641,0.96207,2600.4,2600.3,0.04433703]
[1646918755841,0.96207,2600.4,2600.3,0.09911865]
[1646918756442,0.96207,2600.4,2600.3,1.00618703]
[1646918757695,0.96207,2600.4,2600.3,0.04433703]
[1646918759897,0.99490691,2600.4,2600.3,0.06562572]
[1646918760297,0.99490691,2600.4,2600.3,12.73262572]
[1646918760697,0.99490691,2600.4,2600.3,13.73262572]
[1646918760902,0.99490691,2600.4,2600.3,14.44415367]
[1646918762350,0.03283691,2600.4,2600.3,16.73262572]
[1646918762550,0.03283691,2600.4,2600.3,16.34862572]
[1646918763354,0.03283691,2600.4,2600.3,16.73262572]
[1646918763561,0.96171,2600.9,2600.5,12.114]
[1646918763762,0.07073183,2601.6,2600.8,13.9531489]
[1646918763956,0.07073183,2601.6,2600.9,0.553]
[1646918764155,0.07073183,2601.6,2600.9,0.59392649]
[1646918764356,0.07073183,2601.6,2601.0,0.04035806]
[1646918764556,0.07073183,2601.6,2601.3,1.15096951]
[1646918764756,0.07073183,2601.6,2601.3,1.45096951]
[1646918764956,1.92311,2601.5,2601.3,1.2616334]
[1646918765194,1.92311,2601.5,2601.0,0.04035806]
[1646918765393,1.92311,2601.5,2601.0,0.34035806]
[1646918765596,0.07553342,2601.4,2601.0,0.04035806]
[1646918766994,1.99901342,2601.4,2601.0,0.04035806]
[1646918767197,0.06415028,2601.2,2601.0,0.04035806]
[1646918767394,1.02583028,2601.2,2601.0,0.04035806]
[1646918767594,0.96168,2601.2,2601.0,0.04035806]
[1646918768499,0.96561418,2601.2,2601.0,0.04035806]
[1646918769342,0.96168,2601.2,2601.0,0.04035806]
[1646918769543,0.96561418,2601.2,2601.0,0.04035806]
[1646918769947,0.96561418,2601.2,2601.1,1.19234985]
[1646918770147,1.51339884,2601.2,2601.1,1.19234985]
[1646918770347,1.35964684,2601.2,2601.1,1.19234985]
[1646918770648,1.35571266,2601.2,2601.1,1.19234985]
[1646918771352,0.41985029,2600.9,2600.8,1.0]
[1646918771554,0.81388295,2600.9,2600.7,1.1989748]
[1646918771746,0.41985029,2600.9,2600.8,1.1989748]
[1646918771946,0.80759987,2600.9,2600.8,1.1989748]
[1646918772246,0.80759987,2600.9,2600.6,0.96187]
[1646918772247,0.80759987,2600.9,2600.7,2.12839061]
[1646918772446,0.41985029,2600.9,2600.8,1.1989748]
[1646918772700,0.80747432,2600.9,2600.8,1.1989748]
[1646918773100,1.76937432,2600.9,2600.7,1.1989748]
[1646918773300,1.38175029,2600.9,2600.7,1.4989748]
[1646918773501,1.38175029,2600.9,2600.8,1.1989748]
[1646918773700,1.76939362,2600.9,2600.8,1.1989748]
[1646918774503,1.38175029,2600.9,2600.8,1.1989748]
[1646918777654,1.76939304,2600.9,2600.8,1.1989748]
[1646918779857,1.41870289,2600.9,2600.8,1.1989748]
[1646918784145,1.41870289,2600.9,2600.8,4.6989748]
[1646918784350,1.41870289,2600.9,2600.8,5.6989748]
[1646918784545,1.41870289,2600.9,2600.8,14.4819748]
[1646918785246,1.41870289,2600.9,2600.8,2.7519748]
[1646918785647,1.41870289,2600.9,2600.8,1.7519748]
[1646918785846,1.41870289,2600.9,2600.8,2.7519748]
[1646918786046,1.41870289,2600.9,2600.8,1.7519748]
[1646918786247,1.41870289,2600.9,2600.8,2.7519748]
[1646918786445,1.41870289,2600.9,2600.8,1.7519748]
[1646918786646,1.41870289,2600.9,2600.8,2.7519748]
[1646918786847,1.41870289,2600.9,2600.8,1.7519748]
[1646918787049,1.41870289,2600.9,2600.8,2.7519748]
[1646918787247,1.41870289,2600.9,2600.8,1.7519748]
[1646918787447,1.41870289,2600.9,2600.8,2.7519748]
[1646918787700,0.00366033,2601.1,2600.8,17.9819748]
[1646918787902,0.39217129,2601.3,2600.9,12.9289748]
[1646918788101,0.05932713,2601.8,2601.0,16.9819748]
[1646918788303,0.96151,2601.5,2601.1,12.9289748]
[1646918788500,0.96151,2601.5,2601.2,1.7519748]
[1646918788701,0.96151,2601.5,2601.3,1.1989748]
[1646918788900,0.96151,2601.5,2601.4,0.553]
[1646918789100,1.35360494,2601.5,2601.4,1.7519748]
[1646918789899,0.39209494,2601.5,2601.4,1.7519748]
[1646918790098,0.96145,2601.7,2601.4,2.7134248]
[1646918790099,0.39209494,2601.6,2601.4,2.7134248]
[1646918790299,0.39209494,2601.5,2601.4,2.81445]
[1646918790499,0.39209494,2601.6,2601.4,4.00942427]
[1646918790901,0.39209494,2601.5,2601.4,4.00942427]
[1646918791101,0.39209494,2601.5,2601.4,4.00947051]
[1646918791547,0.39211551,2601.6,2601.4,4.00947051]
[1646918791748,0.96145,2601.7,2601.5,1.19502051]
[1646918792149,0.39210689,2601.6,2601.5,1.19502051]
[1646918792347,0.96538829,2601.7,2601.5,1.19502051]
[1646918792546,0.3921673,2601.6,2601.5,1.19502051]
[1646918792752,0.39216879,2601.6,2601.5,1.19502051]
[1646918792951,0.06162735,2601.6,2601.5,1.19502051]
[1646918793153,0.45379661,2601.6,2601.5,1.19502051]
[1646918793352,0.06162735,2601.6,2601.5,1.19502051]
[1646918793553,0.4538681,2601.6,2601.5,1.19502051]
[1646918794156,1.70432745,2601.2,2600.9,0.00130003]
[1646918794355,0.06119571,2601.0,2600.9,1.19034764]
[1646918794554,0.06119571,2601.0,2600.7,1.19034764]
[1646918794555,0.39224075,2601.0,2600.7,1.19034764]
[1646918794758,3.05019745,2601.2,2600.7,1.19034764]
[1646918794759,0.45346503,2600.9,2600.7,1.19034764]
[1646918794956,0.39224075,2600.8,2600.7,1.19034764]
[1646918795398,0.39224075,2600.8,2600.7,1.49034764]
[1646918795798,0.39224075,2601.1,2600.7,1.49034764]
[1646918796000,0.96191,2600.9,2600.8,1.19098541]
[1646918796302,1.35415075,2600.9,2600.8,1.19098541]
[1646918798846,1.35415075,2600.9,2600.7,1.1913894]
[1646918799049,2.31625075,2600.8,2600.6,0.27332117]
[1646918799247,0.39224075,2600.7,2600.6,0.27332117]
[1646918799446,0.39224075,2600.7,2600.6,1.46087533]
[1646918800245,0.39224075,2600.7,2600.6,1.19137533]
[1646918803302,3.89224075,2600.7,2600.6,1.19137533]
[1646918803503,0.39224075,2600.7,2600.6,1.19137533]